bitfinex/quotes_BTCUSD_20241110
["timestamp","ask_amount","ask_price","bid_price","bid_amount"]
[1731262072259,0.70006551,80612.0,80611.0,2.73983581]
[1731262072466,0.21406551,80612.0,80611.0,2.71280313]
[1731262072691,0.20751864,80612.0,80611.0,3.51280313]
[1731262073133,0.20751864,80612.0,80611.0,3.53983581]
[1731262073343,0.13480926,80612.0,80611.0,3.53983581]
[1731262073554,0.12137067,80612.0,80611.0,3.53983581]
[1731262073783,0.04980644,80612.0,80611.0,3.53983581]
[1731262074454,5.46886012,80623.0,80622.0,0.07684351]
[1731262074693,5.28657022,80623.0,80622.0,0.63184351]
[1731262074902,5.12457022,80623.0,80622.0,1.15945351]
[1731262075315,5.12117342,80623.0,80622.0,1.16624711]
[1731262075522,4.95917342,80623.0,80622.0,1.16624711]
[1731262076158,4.95917342,80623.0,80622.0,1.16224711]
[1731262076620,4.95917342,80623.0,80622.0,1.16624711]
[1731262076830,4.95917342,80623.0,80622.0,1.29218932]
[1731262077294,3.17717342,80623.0,80622.0,1.18139572]
[1731262077500,3.17717342,80623.0,80622.0,1.98539572]
[1731262079007,3.17717342,80623.0,80622.0,1.98139572]
[1731262079224,3.17717342,80623.0,80622.0,1.92255221]
[1731262079651,3.17717342,80623.0,80622.0,1.18539572]
[1731262080472,3.17717342,80623.0,80622.0,0.51205221]
[1731262080729,3.12303652,80623.0,80622.0,0.51205221]
[1731262081389,3.12303652,80623.0,80622.0,0.50805221]
[1731262081736,3.12303652,80623.0,80622.0,0.50505221]
[1731262082069,3.12303652,80623.0,80622.0,0.51005221]
[1731262082274,3.12303652,80623.0,80622.0,0.51205221]
[1731262082492,3.12303652,80623.0,80622.0,0.50505221]
[1731262082700,3.12303652,80623.0,80622.0,0.51005221]
[1731262082873,3.25063652,80623.0,80622.0,0.38611]
[1731262083082,3.25063652,80623.0,80622.0,0.48611]
[1731262083436,3.25063652,80623.0,80622.0,0.61205221]
[1731262084602,3.25063652,80623.0,80622.0,0.61005221]
[1731262084805,3.25063652,80623.0,80622.0,0.48411]
[1731262085013,3.25063652,80623.0,80622.0,0.48211]
[1731262085188,3.25063652,80623.0,80622.0,0.48411]
[1731262085398,3.25063652,80623.0,80622.0,0.48211]
[1731262085623,3.25063652,80623.0,80622.0,0.48611]
[1731262085855,3.25063652,80623.0,80622.0,0.61205221]
[1731262086191,3.25063652,80623.0,80622.0,0.61005221]
[1731262086364,3.25063652,80623.0,80622.0,0.48411]
[1731262086918,3.25147852,80623.0,80622.0,0.48411]
[1731262087469,3.25147852,80623.0,80622.0,0.48391]
[1731262087621,3.25147852,80623.0,80622.0,0.48191]
[1731262088247,3.25147852,80623.0,80622.0,0.48391]
[1731262088448,3.25147852,80623.0,80622.0,0.52648049]
[1731262089063,3.25147852,80623.0,80622.0,0.6524227]
[1731262089714,3.25147852,80623.0,80622.0,0.67023656]
[1731262089916,3.25147852,80623.0,80622.0,0.6524227]
[1731262090684,3.12387852,80623.0,80622.0,0.6524227]
[1731262090990,3.12387852,80623.0,80622.0,0.73359181]
[1731262091314,3.12387852,80623.0,80622.0,0.85463256]
[1731262091487,3.12387852,80623.0,80622.0,1.53359181]
[1731262091925,3.12387852,80623.0,80622.0,1.34190157]
[1731262092150,3.12387852,80623.0,80622.0,1.41390788]
[1731262092422,3.12387852,80623.0,80622.0,1.42307068]
[1731262092634,3.11887852,80623.0,80622.0,1.42307068]
[1731262093071,3.11887852,80623.0,80622.0,1.41907068]
[1731262093719,3.05117322,80623.0,80622.0,1.42307068]
[1731262094796,3.05117322,80623.0,80622.0,1.54400026]
[1731262095042,3.05117322,80623.0,80622.0,1.42307068]
[1731262095251,3.05117322,80623.0,80622.0,1.44702034]
[1731262095460,3.05117322,80623.0,80622.0,1.45601029]
[1731262096367,3.05117322,80623.0,80622.0,1.45201029]
[1731262096570,3.05117322,80623.0,80622.0,1.43206063]
[1731262096774,3.02024234,80623.0,80622.0,1.43206063]
[1731262097241,3.02024234,80623.0,80622.0,1.55307978]
[1731262097472,3.02024234,80623.0,80622.0,1.552847]
[1731262097684,3.02024234,80623.0,80622.0,1.4228379]
[1731262097832,3.02024234,80623.0,80622.0,1.54389903]
[1731262098035,3.02024234,80623.0,80622.0,1.4228379]
[1731262098248,3.02024234,80623.0,80622.0,1.5455819]
[1731262098434,3.02024234,80623.0,80622.0,1.4245199]
[1731262098954,3.02024234,80623.0,80622.0,1.41542201]
[1731262099605,3.02024234,80623.0,80622.0,1.43351483]
[1731262101377,3.02024234,80623.0,80622.0,1.41142201]
[1731262101576,3.02024234,80623.0,80622.0,1.43217833]
[1731262101777,3.02024234,80623.0,80622.0,1.42817833]
[1731262102035,3.02024234,80623.0,80622.0,1.41542201]
[1731262102539,2.98158286,80623.0,80622.0,1.41542201]
[1731262102680,2.98158286,80623.0,80622.0,1.31542201]
[1731262103972,2.98158286,80623.0,80622.0,1.30642708]
[1731262104168,2.98158286,80623.0,80622.0,1.21201103]
[1731262104501,3.06308286,80623.0,80622.0,0.41201103]
[1731262105432,3.06308286,80623.0,80622.0,0.51201103]
[1731262105632,2.98158286,80623.0,80622.0,0.51201103]
[1731262105856,2.98158286,80623.0,80622.0,0.57485454]
[1731262106884,2.98158286,80623.0,80622.0,0.61331435]
[1731262107450,2.98158286,80623.0,80622.0,1.41331435]
[1731262107722,2.98158286,80623.0,80622.0,1.35047084]
[1731262107895,2.98158286,80623.0,80622.0,1.41331435]
[1731262108690,2.98158286,80623.0,80622.0,1.41031435]
[1731262108894,2.98158286,80623.0,80622.0,1.41331435]
[1731262109106,2.98158286,80623.0,80622.0,1.40931435]
[1731262109533,2.98158286,80623.0,80622.0,1.40891235]
[1731262109971,2.98158286,80623.0,80622.0,1.41291235]
[1731262110459,2.98158286,80623.0,80622.0,1.37445254]
[1731262110769,2.98158286,80623.0,80622.0,0.57445254]
[1731262111588,2.98158286,80623.0,80622.0,1.37445254]
[1731262112576,2.98158286,80623.0,80622.0,1.56949698]
[1731262112708,2.98158286,80623.0,80622.0,1.37445254]
[1731262113542,2.98158286,80623.0,80622.0,1.4148363]
[1731262113995,2.98158286,80623.0,80622.0,1.42839338]
[1731262114153,2.79374343,80623.0,80622.0,1.41939543]
[1731262114362,2.71268366,80623.0,80622.0,1.63292572]
[1731262114564,2.18940605,80623.0,80622.0,1.36947481]
[1731262114716,2.01670231,80623.0,80622.0,1.3203503]
[1731262114919,1.98802889,80623.0,80622.0,1.3203503]
[1731262115127,1.91828517,80623.0,80622.0,1.32936132]
[1731262115331,1.12056278,80623.0,80622.0,1.43276424]
[1731262115576,1.01266817,80623.0,80622.0,1.41920716]
[1731262115780,1.00983435,80623.0,80622.0,1.28690716]
[1731262115954,1.00612687,80623.0,80622.0,1.28890716]
[1731262116155,0.73808281,80623.0,80622.0,1.41484937]
[1731262116375,0.59192869,80623.0,80622.0,1.38653213]
[1731262116546,0.59192869,80623.0,80622.0,1.37752111]
[1731262116922,0.52748529,80623.0,80622.0,1.37752111]
[1731262117400,0.51837823,80623.0,80622.0,1.50742111]
[1731262117603,0.51837823,80623.0,80622.0,1.71966606]
[1731262117830,0.49636163,80623.0,80622.0,1.50742111]
[1731262117966,0.47694212,80623.0,80622.0,1.50742111]
[1731262118182,0.000703,80647.0,80622.0,1.50742111]
[1731262118183,5.63420626,80633.0,80632.0,0.07504281]
[1731262118363,5.53123358,80633.0,80632.0,2.37369481]
[1731262118571,5.53123358,80633.0,80632.0,2.47874281]
[1731262118788,4.78517683,80633.0,80632.0,2.83202281]
[1731262118993,4.76318221,80633.0,80632.0,2.83202281]
[1731262119210,4.73657459,80633.0,80632.0,2.83202281]
[1731262119411,4.72068107,80633.0,80632.0,2.83202281]
[1731262119834,4.70745099,80633.0,80632.0,2.96192281]
[1731262120244,4.49018663,80633.0,80632.0,2.99512309]
[1731262120572,3.90888914,80633.0,80632.0,4.65160024]
[1731262120778,3.24070777,80633.0,80632.0,2.93202281]
[1731262121071,2.7284678,80633.0,80632.0,3.06192281]
[1731262121214,2.72807037,80633.0,80632.0,3.37211881]
[1731262121429,2.72088744,80633.0,80632.0,3.37211881]
[1731262121639,2.72088744,80633.0,80632.0,4.17211881]
[1731262121838,2.66025103,80633.0,80632.0,4.17211881]
[1731262122042,2.65168377,80633.0,80632.0,4.17211881]
[1731262122254,2.57162895,80633.0,80632.0,4.17211881]
[1731262122453,2.13890486,80633.0,80632.0,4.17211881]
[1731262122614,1.3097657,80633.0,80632.0,4.17211881]
[1731262122820,0.88820372,80633.0,80632.0,4.17211881]
[1731262123028,0.88820372,80633.0,80632.0,4.16911881]
[1731262123227,0.41715299,80633.0,80632.0,4.17211881]
[1731262123434,6.08480023,80643.0,80642.0,0.20470093]
[1731262123671,6.08480023,80643.0,80642.0,0.68783093]
[1731262123672,6.08167063,80643.0,80642.0,0.68783093]
[1731262123877,6.09048216,80643.0,80642.0,0.55793093]
[1731262124346,6.08754498,80643.0,80642.0,0.55793093]
[1731262124753,6.08754498,80643.0,80642.0,1.35793093]
[1731262124950,6.07493878,80643.0,80642.0,4.22013493]
[1731262125198,5.82493878,80643.0,80642.0,4.12997993]
[1731262125372,5.82476574,80643.0,80642.0,3.75468593]
[1731262125578,5.74670242,80643.0,80642.0,3.84878593]
[1731262126433,5.67307849,80643.0,80642.0,3.84878593]
[1731262126723,5.6412946,80643.0,80642.0,3.90830778]
[1731262126886,5.59940989,80643.0,80642.0,1.73698178]
[1731262127088,5.59940989,80643.0,80642.0,1.51155278]
[1731262127487,5.59940989,80643.0,80642.0,1.50955278]
[1731262127689,5.59940989,80643.0,80642.0,1.51155278]
[1731262128057,5.59940989,80643.0,80642.0,1.50955278]
[1731262128260,5.59901767,80643.0,80642.0,1.51155278]
[1731262128501,5.59901767,80643.0,80642.0,1.54913216]
[1731262128875,5.59901767,80643.0,80642.0,1.45503216]
[1731262129214,5.59901767,80643.0,80642.0,1.57508482]
[1731262129444,5.59901767,80643.0,80642.0,1.45503216]
[1731262129445,5.57120284,80643.0,80642.0,1.45503216]
[1731262129905,5.57120284,80643.0,80642.0,1.45303216]
[1731262130114,5.57120284,80643.0,80642.0,1.45503216]
[1731262130329,5.54239507,80643.0,80642.0,1.48170558]
[1731262130538,5.54532959,80643.0,80642.0,1.45503216]
[1731262130749,5.54323185,80643.0,80642.0,1.45503216]
[1731262130971,5.53442298,80643.0,80642.0,1.45303216]
[1731262131146,5.53442298,80643.0,80642.0,1.45503216]
[1731262131950,5.53442298,80643.0,80642.0,1.45303216]
[1731262132176,5.53442298,80643.0,80642.0,1.45503216]
[1731262132407,5.53442298,80643.0,80642.0,1.39551031]
[1731262132623,5.53436298,80643.0,80642.0,1.39551031]
[1731262133344,5.53430298,80643.0,80642.0,1.39551031]
[1731262133593,5.53430298,80643.0,80642.0,1.49551031]
[1731262133808,5.53424298,80643.0,80642.0,1.49551031]
[1731262134029,5.53424298,80643.0,80642.0,1.6879376]
[1731262134206,5.53508398,80643.0,80642.0,1.6879376]
[1731262134440,5.53502398,80643.0,80642.0,1.49551031]
[1731262135072,5.53496398,80643.0,80642.0,1.49551031]
[1731262135302,5.47933962,80643.0,80642.0,1.49551031]
[1731262135751,5.47933962,80643.0,80642.0,1.39551031]
[1731262135956,5.47927962,80643.0,80642.0,1.39551031]
[1731262136568,5.47921962,80643.0,80642.0,1.39551031]
[1731262136779,5.47921962,80643.0,80642.0,1.60683474]
[1731262136988,5.47921962,80643.0,80642.0,1.39551031]
[1731262137187,5.47915962,80643.0,80642.0,1.49551031]
[1731262137308,5.47407659,80643.0,80642.0,1.49551031]
[1731262138001,5.47401659,80643.0,80642.0,1.49551031]
[1731262138204,5.41993862,80643.0,80642.0,1.49351031]
[1731262138405,5.41993862,80643.0,80642.0,1.49551031]
[1731262138633,5.41987862,80643.0,80642.0,1.49531031]
[1731262139043,5.41981862,80643.0,80642.0,1.49531031]
[1731262139446,5.42566936,80643.0,80642.0,1.49531031]
[1731262140054,5.42566936,80643.0,80642.0,1.55483216]
[1731262140289,5.35768723,80643.0,80642.0,1.55483216]
[1731262141027,5.35768723,80643.0,80642.0,1.80183216]
[1731262141840,5.32118723,80643.0,80642.0,1.70183216]
[1731262142074,5.32118723,80643.0,80642.0,1.91206171]
[1731262142307,5.32118723,80643.0,80642.0,1.70183216]
[1731262143364,5.2472355,80643.0,80642.0,1.80183216]
[1731262143812,5.1576044,80643.0,80642.0,1.93173216]
[1731262144047,5.11416724,80643.0,80642.0,1.80183216]
[1731262144225,5.08154296,80643.0,80642.0,1.80183216]
[1731262144440,4.99433816,80643.0,80642.0,1.80183216]
[1731262144638,4.94032857,80643.0,80642.0,1.80183216]
[1731262144859,4.93447783,80643.0,80642.0,1.80183216]
[1731262145233,4.89970693,80643.0,80642.0,1.80183216]
[1731262145610,4.84408663,80643.0,80642.0,1.80183216]
[1731262146355,4.84408663,80643.0,80642.0,1.80351416]
[1731262146989,4.84408663,80643.0,80642.0,1.93341416]
[1731262147332,4.84408663,80643.0,80642.0,1.93141416]
[1731262147562,4.84408663,80643.0,80642.0,1.88341416]
[1731262147784,4.58908663,80643.0,80642.0,1.75351416]
[1731262147963,4.57647175,80643.0,80642.0,2.95380616]
[1731262148163,4.57647175,80643.0,80642.0,3.08370616]
[1731262148360,4.57647175,80643.0,80642.0,3.05778416]
[1731262148894,4.57596831,80643.0,80642.0,3.05778416]
[1731262149470,4.58421333,80643.0,80642.0,3.05778416]
[1731262149865,4.53211805,80643.0,80642.0,3.05778416]
[1731262150073,4.45507419,80643.0,80642.0,3.05778416]
[1731262150270,4.42502952,80643.0,80642.0,3.0854736]
[1731262150494,4.42502952,80643.0,80642.0,3.05578416]
[1731262150695,4.42502952,80643.0,80642.0,3.05778416]
[1731262150696,4.36105887,80643.0,80642.0,3.05778416]
[1731262151032,4.34867569,80643.0,80642.0,3.05778416]
[1731262151172,4.14867569,80643.0,80642.0,3.05778416]
[1731262151781,4.13605594,80643.0,80642.0,3.05778416]
[1731262152988,4.13296092,80643.0,80642.0,3.05778416]
[1731262154636,3.64218881,80643.0,80642.0,3.05778416]
[1731262154861,3.07562056,80643.0,80642.0,3.05778416]
[1731262155172,2.9152779,80643.0,80642.0,3.05778416]
[1731262155316,2.55931448,80643.0,80642.0,3.13349174]
[1731262155520,2.5314614,80643.0,80642.0,3.13149174]
[1731262155725,2.35437479,80643.0,80642.0,3.13349174]
[1731262155946,2.21534771,80643.0,80642.0,3.13349174]
[1731262156704,2.03665444,80643.0,80642.0,3.13349174]
[1731262156943,1.91735282,80643.0,80642.0,3.13349174]
[1731262157143,1.79601899,80643.0,80642.0,3.13349174]
[1731262157292,1.75609473,80643.0,80642.0,3.13349174]
[1731262157472,1.57259057,80643.0,80642.0,3.13349174]
[1731262157682,1.44142709,80643.0,80642.0,3.13349174]
[1731262157867,0.07505408,80643.0,80642.0,3.13349174]
[1731262158071,6.07637518,80653.0,80652.0,0.012]
[1731262158278,6.07637518,80653.0,80652.0,5.88396436]
[1731262158481,6.07637518,80653.0,80652.0,6.12696436]
[1731262158868,6.07637518,80653.0,80652.0,5.99706436]
[1731262159294,6.07637518,80653.0,80652.0,5.89706436]
[1731262159496,6.041139,80653.0,80652.0,0.90676036]
[1731262160039,6.041139,80653.0,80652.0,0.86862009]
[1731262160237,5.81363233,80653.0,80652.0,0.89422474]
[1731262160474,5.81363233,80653.0,80652.0,1.66862009]
[1731262160656,5.81363233,80653.0,80652.0,1.76862009]
[1731262161477,5.80363233,80653.0,80652.0,1.76862009]
[1731262162635,5.80363233,80653.0,80652.0,1.56592409]
[1731262162764,5.80363233,80653.0,80652.0,1.77208249]
[1731262162952,5.80363233,80653.0,80652.0,1.77708249]
[1731262163152,5.80363233,80653.0,80652.0,1.46592409]
[1731262164657,5.77598266,80653.0,80652.0,1.46592409]
[1731262165623,5.77598266,80653.0,80652.0,1.37654371]
[1731262165827,5.7373641,80653.0,80652.0,1.37654371]
[1731262165970,5.7373641,80653.0,80652.0,1.37454371]
[1731262166341,5.7373641,80653.0,80652.0,1.37654371]
[1731262168064,5.7373641,80653.0,80652.0,1.47654371]
[1731262168406,5.7373641,80653.0,80652.0,1.47454371]
[1731262168612,5.7373641,80653.0,80652.0,1.47654371]
[1731262168807,5.67914445,80653.0,80652.0,1.47654371]
[1731262169019,5.6589639,80653.0,80652.0,1.47454371]
[1731262169166,5.64519922,80653.0,80652.0,1.47654371]
[1731262169363,5.62600269,80653.0,80652.0,1.47654371]
[1731262169579,5.55533013,80653.0,80652.0,1.47654371]
[1731262169955,5.55533013,80653.0,80652.0,1.47154371]
[1731262170076,5.55617113,80653.0,80652.0,1.37154371]
[1731262170469,5.54306125,80653.0,80652.0,1.37154371]
[1731262171594,5.54306125,80653.0,80652.0,1.36954371]
[1731262171837,5.54306125,80653.0,80652.0,1.37154371]
[1731262172465,5.54306125,80653.0,80652.0,1.47154371]
[1731262172704,5.62546125,80653.0,80652.0,1.34344371]
[1731262172913,5.62546125,80653.0,80652.0,1.03724371]
[1731262173201,5.62546125,80653.0,80652.0,0.85714371]
[1731262173404,5.49506125,80653.0,80652.0,0.60114371]
[1731262173562,5.50000125,80653.0,80652.0,0.94381371]
[1731262174218,5.49994125,80653.0,80652.0,0.93681371]
[1731262174372,5.49994125,80653.0,80652.0,0.93881371]
[1731262174710,5.50494125,80653.0,80652.0,0.93681371]
[1731262175021,5.50494125,80653.0,80539.0,0.10766467]
[1731262175022,0.01,80638.0,80637.0,0.24839849]
[1731262175219,0.005,80631.0,80630.0,0.06297358]
[1731262175509,5.49494125,80653.0,80629.0,0.03820022]
[1731262175510,0.005,80630.0,80629.0,0.10021055]
[1731262175750,0.005,80630.0,80629.0,0.10521055]
[1731262175874,0.005,80630.0,80629.0,0.47228055]
[1731262176487,0.005,80630.0,80629.0,1.27228055]
[1731262177091,0.005,80630.0,80629.0,1.37228055]
[1731262177296,0.005,80630.0,80629.0,1.27228055]
[1731262177501,0.01,80630.0,80629.0,1.27228055]
[1731262178670,0.005,80642.0,80629.0,1.27228055]
[1731262178873,0.005,80637.0,80629.0,1.21027022]
[1731262179310,0.005,80637.0,80630.0,0.1862683]
[1731262179588,0.005,80641.0,80631.0,0.43431546]
[1731262180242,0.005,80649.0,80632.0,0.1862683]
[1731262180536,1.8706683,80652.0,80640.0,0.8]
[1731262180537,0.0135493,80648.0,80640.0,0.8]
[1731262180741,0.0135493,80648.0,80640.0,0.86175792]
[1731262181041,0.0135493,80648.0,80641.0,0.37202]
[1731262181884,0.0135493,80648.0,80644.0,0.1862683]
[1731262182141,0.0143903,80648.0,80645.0,0.372]
[1731262183387,0.005,80646.0,80645.0,0.372]
[1731262183903,0.01353037,80646.0,80645.0,0.372]
[1731262184030,0.005,80646.0,80645.0,0.372]
[1731262184526,0.01353037,80646.0,80645.0,0.372]
[1731262185300,0.14147258,80646.0,80645.0,0.372]
[1731262185437,0.14147258,80646.0,80645.0,0.186961]
[1731262186062,0.14005058,80646.0,80645.0,0.17209766]
[1731262186260,0.14005058,80646.0,80645.0,0.14903385]
[1731262187108,0.13805058,80646.0,80645.0,0.14903385]
[1731262187306,0.14005058,80646.0,80645.0,0.14903385]
[1731262187506,0.13805058,80646.0,80645.0,0.14903385]
[1731262188139,0.01210837,80646.0,80645.0,0.14903385]
[1731262188443,0.003578,80646.0,80645.0,0.14903385]
[1731262188645,0.003578,80646.0,80645.0,0.18405682]
[1731262188860,0.1862683,80652.0,80645.0,0.18405682]
[1731262189030,0.0992,80652.0,80645.0,0.14903385]
[1731262189233,4.97563013,80653.0,80645.0,0.14903385]
[1731262189460,4.36570618,80653.0,80645.0,0.14903385]
[1731262190640,4.36570618,80653.0,80648.0,0.1862683]
[1731262190856,4.36570618,80653.0,80649.0,0.06432382]
[1731262191097,4.36570618,80653.0,80652.0,0.19060284]
[1731262191221,4.36570618,80653.0,80652.0,0.28548755]
[1731262191428,4.36570618,80653.0,80652.0,1.55679217]
[1731262191653,4.36570618,80653.0,80652.0,1.68042755]
[1731262191853,4.36570618,80653.0,80652.0,1.68542755]
[1731262192861,4.33571245,80653.0,80652.0,1.70042755]
[1731262193063,4.32629383,80653.0,80652.0,1.70042755]
[1731262193281,4.32629383,80653.0,80652.0,1.74862755]
[1731262193563,4.15900269,80653.0,80652.0,1.73862755]
[1731262193988,4.15900269,80653.0,80652.0,1.74862755]
[1731262194395,4.15900269,80653.0,80652.0,1.68542755]
[1731262195280,4.15900269,80653.0,80652.0,1.71203367]
[1731262195491,4.15900269,80653.0,80652.0,1.71703367]
[1731262195690,4.15900269,80653.0,80652.0,1.68542755]
[1731262196865,4.15900269,80653.0,80652.0,1.71785827]
[1731262197080,4.15900269,80653.0,80652.0,1.73285827]
[1731262197293,4.15900269,80653.0,80652.0,1.70042755]
[1731262197729,4.15900269,80653.0,80652.0,1.68542755]
[1731262198634,4.15900269,80653.0,80652.0,1.6181178]
[1731262199750,4.15900269,80653.0,80652.0,1.7181178]
[1731262200420,4.15900269,80653.0,80652.0,3.42912392]
[1731262200617,4.15900269,80653.0,80652.0,3.4025178]
[1731262200829,4.15900269,80653.0,80652.0,3.4175178]
[1731262201048,4.15900269,80653.0,80652.0,3.5411178]
[1731262201472,4.10492763,80653.0,80652.0,3.5411178]
[1731262201687,3.97682763,80653.0,80652.0,3.5411178]
[1731262201904,3.77011285,80653.0,80652.0,3.57258371]
[1731262202199,3.76978196,80653.0,80652.0,3.5411178]
[1731262203329,3.74197205,80653.0,80652.0,3.5411178]
[1731262204715,3.74197205,80653.0,80652.0,3.4175178]
[1731262205480,3.70788387,80653.0,80652.0,3.4075178]
[1731262205699,3.70328065,80653.0,80652.0,3.3025178]
[1731262205903,3.68380216,80653.0,80652.0,3.3025178]
[1731262206207,3.68068715,80653.0,80652.0,3.3025178]
[1731262207232,3.68068715,80653.0,80652.0,3.4025178]
[1731262207980,3.68068715,80653.0,80652.0,3.26482755]
[1731262208763,3.75718715,80653.0,80652.0,3.20297538]
[1731262208918,3.70307886,80653.0,80652.0,3.26482755]
[1731262209681,3.70307886,80653.0,80652.0,3.20297538]
[1731262209886,3.62657886,80653.0,80652.0,3.20297538]
[1731262210071,3.62657886,80653.0,80652.0,3.36482755]
[1731262210681,3.62657886,80653.0,80652.0,3.30297538]
[1731262211058,3.62657886,80653.0,80652.0,3.36482755]
[1731262211213,3.62657886,80653.0,80652.0,2.88072755]
[1731262211547,3.62657886,80653.0,80652.0,1.89524]
[1731262211876,3.62657886,80653.0,80652.0,2.08072755]
[1731262212615,3.62657886,80653.0,80652.0,2.88072755]
[1731262213139,3.62657886,80653.0,80652.0,3.00144173]
[1731262213375,3.62657886,80653.0,80652.0,2.81887538]
[1731262213612,3.62657886,80653.0,80652.0,2.88072755]
[1731262213811,3.62657886,80653.0,80652.0,2.69524]
[1731262214088,3.62657886,80653.0,80652.0,2.79524]
[1731262214487,3.62657886,80653.0,80652.0,1.99524]
[1731262214764,3.62657886,80653.0,80652.0,1.89524]
[1731262215830,3.62857886,80653.0,80652.0,1.89524]
[1731262216079,3.62657886,80653.0,80652.0,1.89524]
[1731262217014,3.62657886,80653.0,80652.0,1.95709217]
[1731262217312,3.62657886,80653.0,80652.0,1.89524]
[1731262217349,3.52738686,80653.0,80652.0,2.08108117]
[1731262217536,3.52738686,80653.0,80652.0,2.30471655]
[1731262217931,3.52738686,80653.0,80652.0,2.35971655]
[1731262218173,3.52738686,80653.0,80652.0,2.36140055]
[1731262218428,3.52738686,80653.0,80652.0,2.44770055]
[1731262218429,3.52245327,80653.0,80652.0,2.44770055]
[1731262218725,3.52245327,80653.0,80652.0,3.2753908]
[1731262219552,3.46836858,80653.0,80652.0,3.2753908]
[1731262220218,3.46836858,80653.0,80652.0,3.2703908]
[1731262220419,3.46836858,80653.0,80652.0,3.29721241]
[1731262220746,3.46836858,80653.0,80652.0,3.30221241]
[1731262220943,3.46836858,80653.0,80652.0,3.2653908]
[1731262221080,3.42973522,80653.0,80652.0,3.2653908]
[1731262221284,3.42973522,80653.0,80652.0,3.2603908]
[1731262221686,3.42973522,80653.0,80652.0,3.45391263]
[1731262221934,3.42973522,80653.0,80652.0,3.0390908]
[1731262222306,3.42973522,80653.0,80652.0,3.0440908]
[1731262222905,3.42973522,80653.0,80652.0,3.1040908]
[1731262223110,3.30163522,80653.0,80652.0,3.2753908]
[1731262223699,3.24166101,80653.0,80652.0,3.2753908]
[1731262223901,3.16854839,80653.0,80652.0,3.2753908]
[1731262224108,3.16854839,80653.0,80652.0,3.2803908]
[1731262224605,3.04044839,80653.0,80652.0,3.2803908]
[1731262224822,2.78424839,80653.0,80652.0,3.2803908]
[1731262225004,2.58424839,80653.0,80652.0,3.2803908]
[1731262226878,2.52267629,80653.0,80652.0,3.2803908]
[1731262227888,2.52267629,80653.0,80652.0,3.0540908]
[1731262228621,2.52267629,80653.0,80652.0,3.0490908]
[1731262228826,2.52267629,80653.0,80652.0,3.0440908]
[1731262230104,2.49867629,80653.0,80652.0,3.1670908]
[1731262230422,2.45494966,80653.0,80652.0,3.1670908]
[1731262231959,2.44056736,80653.0,80652.0,3.1670908]
[1731262232391,2.44056736,80653.0,80652.0,3.37041305]
[1731262232562,2.44056736,80653.0,80652.0,3.1820908]
[1731262232943,2.44056736,80653.0,80652.0,3.1920908]
[1731262233151,2.43079983,80653.0,80652.0,3.1920908]
[1731262233701,2.39101938,80653.0,80652.0,3.14940055]
[1731262233911,2.52011938,80653.0,80652.0,1.29063241]
[1731262234111,2.39101938,80653.0,80652.0,0.78279703]
[1731262234252,2.3631896,80653.0,80646.0,0.1207536]
[1731262234452,2.3631896,80653.0,80643.0,0.8]
[1731262234659,0.002,80646.0,80597.0,0.06105635]
[1731262234875,0.12794221,80646.0,80596.0,0.06107526]
[1731262235092,0.7439323,80635.0,80594.0,0.06238853]
[1731262235354,0.00958215,80645.0,80594.0,0.06238853]
[1731262235524,0.7439323,80625.0,80596.0,0.06207526]
[1731262235926,0.00943723,80624.0,80597.0,0.37222]
[1731262236139,0.00943723,80624.0,80598.0,0.1]
[1731262236321,0.00943723,80624.0,80600.0,0.023]
[1731262236523,0.00943723,80624.0,80605.0,0.06285363]
[1731262236780,0.7439323,80643.0,80608.0,0.06719708]
[1731262237086,0.7439323,80633.0,80611.0,0.06232874]
[1731262237289,0.009484,80632.0,80611.0,0.06232874]
[1731262237408,0.009484,80632.0,80613.0,0.16201388]
[1731262237607,0.7439323,80643.0,80625.0,0.16251374]
[1731262237966,0.7439323,80643.0,80628.0,0.06289149]
[1731262237967,0.00954647,80642.0,80628.0,0.06289149]
[1731262238360,0.00954647,80642.0,80624.0,0.4]
[1731262238361,0.035614,80660.0,80630.0,0.16189353]
[1731262238665,0.035614,80660.0,80643.0,0.16174391]
[1731262238666,0.75354123,80652.0,80643.0,0.16174391]
[1731262238807,0.75354123,80652.0,80646.0,0.023]
[1731262239010,0.00960893,80652.0,80649.0,0.06174812]
[1731262239260,0.00960893,80652.0,80648.0,0.06124365]
[1731262239469,0.00960893,80652.0,80651.0,0.123]
[1731262239771,0.00960893,80652.0,80651.0,0.55695885]
[1731262241438,0.00960893,80652.0,80651.0,0.95695885]
[1731262241638,0.00960893,80652.0,80651.0,0.95864285]
[1731262242082,0.00960893,80652.0,80651.0,0.896654]
[1731262242295,0.00960893,80652.0,80651.0,0.873654]
[1731262242651,0.00960893,80652.0,80651.0,0.773654]
[1731262243612,0.00960893,80652.0,80651.0,0.373654]
[1731262243817,0.13555114,80652.0,80651.0,0.373654]
[1731262244279,0.00960893,80652.0,80651.0,0.373654]
[1731262244804,0.13555114,80652.0,80651.0,0.373554]
[1731262245235,0.23175114,80652.0,80651.0,0.373554]
[1731262245390,0.23275114,80652.0,80651.0,0.373554]
[1731262245594,0.23375114,80652.0,80651.0,0.373554]
[1731262246393,0.23375114,80652.0,80651.0,0.36197246]
[1731262248342,0.23375114,80652.0,80651.0,0.34557397]
[1731262248585,0.23375114,80652.0,80651.0,0.3322502]
[1731262249300,0.18375114,80652.0,80651.0,0.3322502]
[1731262249505,0.19173842,80652.0,80651.0,0.3322502]
[1731262250048,0.19173842,80652.0,80651.0,0.26460643]
[1731262251013,0.19173842,80652.0,80651.0,0.24718304]
[1731262251235,0.19173842,80652.0,80651.0,0.23488417]
[1731262251584,0.37772957,80652.0,80651.0,0.21951059]
[1731262251782,0.29173842,80652.0,80651.0,0.11292041]
[1731262252190,0.19173842,80652.0,80651.0,0.11292041]
[1731262253057,0.19258042,80652.0,80651.0,0.11292041]
[1731262253456,1.17258042,80652.0,80651.0,0.11292041]
[1731262256850,1.45857157,80652.0,80651.0,0.09088494]
[1731262257070,0.002,80616.0,80599.0,0.4]
[1731262257290,0.12594221,80616.0,80599.0,0.4]
[1731262257474,0.1326906,80615.0,80585.0,0.06243747]
[1731262257687,0.0953,80626.0,80588.0,0.06210887]
[1731262257891,0.18599115,80615.0,80589.0,0.18871689]
[1731262258151,0.0953,80626.0,80589.0,0.49820221]
[1731262258449,0.0953,80624.0,80590.0,0.1620776]
[1731262258674,0.12594221,80623.0,80592.0,0.06207383]
[1731262259078,0.12594221,80623.0,80591.0,0.49819221]
[1731262259079,0.12594221,80623.0,80594.0,0.16238853]
[1731262259435,0.12594221,80623.0,80595.0,0.37223]
[1731262259842,0.0937,80622.0,80595.0,0.37223]
[1731262260048,0.12343168,80621.0,80595.0,0.37223]
[1731262260458,0.0937,80620.0,80595.0,0.37223]
[1731262260781,0.08839617,80650.0,80602.0,0.0483]
[1731262261005,0.18599115,80623.0,80603.0,0.12594221]
[1731262261214,0.18599115,80632.0,80603.0,0.12594221]
[1731262261215,0.18599115,80632.0,80605.0,0.06285363]